[Event "21th IPCA World Individual Chp."]
[Site "followchess.com"]
[Date "2022.05.16"]
[Round "9"]
[White "Shapiro, Benny"]
[Black "Obodchuk, Andrei"]
[Result "0-1"]
[WhiteElo "1884"]
[BlackElo "2295"]
[ECO "D85"]
[WhiteFed "ISR"]
[BlackFed "FID"]
[FCGameId "2024062262"]
[WhiteFideId "2801582"]
[BlackFideId "4114310"]
[TimeControl "5400+30"]

1. d4 {[%clk 1:30:58]} Nf6 {[%clk 1:30:55]} 2. Nf3 {[%clk 1:31:26]} g6 
{[%clk 1:31:06]} 3. c4 {[%clk 1:31:40]} Bg7 {[%clk 1:31:30]} 4. Nc3 
{[%clk 1:31:56]} d5 {[%clk 1:31:55]} 5. cxd5 {[%clk 1:32:03]} Nxd5 
{[%clk 1:32:20]} 6. e4 {[%clk 1:32:13]} Nxc3 {[%clk 1:32:41]} 7. bxc3 
{[%clk 1:32:30]} c5 {[%clk 1:33:09]} 8. h3 {[%clk 1:32:42]} O-O {[%clk 1:31:06]} 
9. Be3 {[%clk 1:27:59]} b6 {[%clk 1:30:53]} 10. Qd2 {[%clk 1:25:48]} Bb7 
{[%clk 1:30:08]} 11. Bd3 {[%clk 1:25:53]} cxd4 {[%clk 1:26:20]} 12. cxd4 
{[%clk 1:25:25]} Nc6 {[%clk 1:26:43]} 13. Bc4 {[%clk 1:23:41]} Rc8 
{[%clk 1:26:34]} 14. Rc1 {[%clk 1:23:10]} Na5 {[%clk 1:26:45]} 15. Bd3 
{[%clk 1:23:13]} Rxc1+ 16. Qxc1 {[%clk 1:23:38]} Qa8 {[%clk 1:23:59]} 17. Qb1 
{[%clk 1:22:16]} Rc8 {[%clk 1:17:28]} 18. Nd2 {[%clk 1:17:38]} e6 
{[%clk 1:16:14]} 19. O-O {[%clk 1:17:36]} Rd8 {[%clk 1:16:31]} 20. Nf3 
{[%clk 1:17:01]} Nc6 {[%clk 1:14:14]} 21. Qb2 {[%clk 1:16:35]} Qb8 
{[%clk 1:14:03]} 22. Rd1 {[%clk 1:15:14]} Qd6 {[%clk 1:13:23]} 23. Be2 
{[%clk 1:14:37]} Na5 {[%clk 1:12:44]} 24. Bd3 {[%clk 1:13:30]} f5 
{[%clk 1:07:58]} 25. e5 {[%clk 1:10:01]} Qd5 {[%clk 1:05:48]} 26. Rc1 
{[%clk 1:07:44]} Rc8 {[%clk 1:00:25]} 27. Rxc8+ {[%clk 1:06:46]} Bxc8 
{[%clk 1:00:54]} 28. Qc2 {[%clk 1:05:46]} Qc6 {[%clk 0:59:55]} 29. Qe2 
{[%clk 1:03:31]} Qc7 {[%clk 0:51:53]} 30. Qd2 {[%clk 0:59:53]} Bb7 
{[%clk 0:51:26]} 31. Be2 {[%clk 0:58:33]} Bd5 {[%clk 0:51:14]} 32. Bg5 
{[%clk 0:57:29]} Nc6 {[%clk 0:49:13]} 33. a3 {[%clk 0:56:48]} Bf8 
{[%clk 0:47:43]} 34. Qe3 {[%clk 0:55:01]} Na5 {[%clk 0:46:56]} 35. Bf6 
{[%clk 0:54:18]} Qc2 {[%clk 0:46:04]} 36. h4 {[%clk 0:52:02]} Qe4 
{[%clk 0:46:07]} 37. a4 {[%clk 0:48:30]} Qxe3 {[%clk 0:45:04]} 38. fxe3 
{[%clk 0:48:57]} h6 {[%clk 0:44:13]} 39. Kf2 {[%clk 0:47:45]} Kf7 
{[%clk 0:44:22]} 40. Bb5 {[%clk 0:46:59]} Bb4 {[%clk 0:38:50]} 41. Bd8 
{[%clk 0:46:11]} Nc6 {[%clk 0:35:52]} 42. Bf6 {[%clk 0:45:06]} Nb8 
{[%clk 0:36:02]} 43. Bd8 {[%clk 0:44:09]} Nc6 {[%clk 0:33:33]} 44. Bf6 
{[%clk 0:44:13]} Be7 {[%clk 0:32:13]} 45. Bxe7 {[%clk 0:43:10]} Kxe7 
{[%clk 0:32:41]} 46. g3 {[%clk 0:42:36]} Nb4 {[%clk 0:32:22]} 47. Ne1 
{[%clk 0:41:00]} Bb3 {[%clk 0:32:22]} 48. Ke2 {[%clk 0:38:56]} a6 
{[%clk 0:32:39]} 49. Nd3 {[%clk 0:37:38]} axb5 {[%clk 0:31:56]} 50. Nxb4 
{[%clk 0:37:53]} bxa4 {[%clk 0:32:17]} 51. Kd2 {[%clk 0:38:06]} Bc4 
{[%clk 0:26:54]} 52. Kc3 {[%clk 0:38:03]} b5 {[%clk 0:27:20]} 53. Kb2 
{[%clk 0:37:27]} Kf7 {[%clk 0:27:43]} 54. Ka3 {[%clk 0:35:26]} g5 
{[%clk 0:27:57]} 55. hxg5 {[%clk 0:35:01]} h5 {[%clk 0:24:09]} 56. Kb2 
{[%clk 0:29:17]} Kg6 {[%clk 0:24:27]} 57. Ka3 {[%clk 0:28:58]} Kxg5 
{[%clk 0:23:45]} 58. Kb2 {[%clk 0:27:43]} Be2 {[%clk 0:23:58]} 59. Ka3 
{[%clk 0:27:09]} Bf3 {[%clk 0:24:11]} 60. Kb2 {[%clk 0:23:17]} Bb7 
{[%clk 0:23:10]} 61. Nd3 {[%clk 0:22:21]} Kg4 {[%clk 0:23:06]} 62. Nf4 
{[%clk 0:22:20]} Bc8 {[%clk 0:21:51]} 63. Ka3 {[%clk 0:21:30]} Kxg3 
{[%clk 0:21:58]} 64. Nxh5+ {[%clk 0:21:35]} Kf3 {[%clk 0:22:22]} 65. Nf6 
{[%clk 0:20:07]} Kxe3 {[%clk 0:22:46]} 66. d5 {[%clk 0:20:22]} exd5 
{[%clk 0:23:10]} 67. Nxd5+ {[%clk 0:20:38]} Kd4 {[%clk 0:21:33]} 68. Nb6 
{[%clk 0:20:24]} Be6 {[%clk 0:21:51]} 69. Kb4 {[%clk 0:20:15]} f4 
{[%clk 0:22:11]} 0-1

[Event "21th IPCA World Individual Chp."]
[Site "followchess.com"]
[Date "2022.05.16"]
[Round "9"]
[White "Gerasimova, Svetlana"]
[Black "Mikheev, Stanislav"]
[Result "0-1"]
[WhiteElo "1906"]
[BlackElo "2333"]
[ECO "C53"]
[WhiteFed "FID"]
[BlackFed "SRB"]
[FCGameId "1092956455"]
[WhiteFideId "4145968"]
[BlackFideId "4135920"]
[TimeControl "5400+30"]

1. e4 {[%clk 1:30:56]} e5 {[%clk 1:30:53]} 2. Nf3 {[%clk 1:31:08]} Nc6 
{[%clk 1:31:16]} 3. Bc4 {[%clk 1:31:06]} Nf6 {[%clk 1:31:37]} 4. d3 
{[%clk 1:30:32]} Bc5 {[%clk 1:31:24]} 5. c3 {[%clk 1:29:00]} a6 {[%clk 1:31:11]} 
6. a4 {[%clk 1:28:48]} O-O {[%clk 1:31:01]} 7. O-O {[%clk 1:28:58]} d5 
{[%clk 1:28:41]} 8. exd5 Nxd5 {[%clk 1:29:09]} 9. d4 {[%clk 1:25:22]} exd4 10. 
cxd4 {[%clk 1:21:25]} Bb6 {[%clk 1:26:57]} 11. Nc3 {[%clk 1:19:36]} Be6 
{[%clk 1:25:39]} 12. Ng5 {[%clk 1:04:57]} Nxc3 {[%clk 1:24:33]} 13. Qd3 
{[%clk 1:04:10]} Ne2+ {[%clk 1:23:18]} 14. Kh1 {[%clk 0:56:35]} g6 
{[%clk 1:23:35]} 15. Nxe6 {[%clk 0:53:29]} Nxc1 {[%clk 1:23:29]} 16. Nxd8 
{[%clk 0:50:21]} Nxd3 {[%clk 1:23:31]} 17. Nxc6 {[%clk 0:50:47]} Nxb2 
{[%clk 1:22:53]} 18. Ne7+ {[%clk 0:49:08]} Kg7 {[%clk 1:23:00]} 19. Bd5 
{[%clk 0:46:52]} c6 {[%clk 1:22:23]} 20. Rab1 {[%clk 0:43:14]} Bxd4 
{[%clk 1:22:01]} 21. Bb3 {[%clk 0:41:17]} Rfe8 {[%clk 1:21:11]} 22. Rfe1 
{[%clk 0:40:42]} Nd3 {[%clk 1:20:42]} 23. Re2 {[%clk 0:32:13]} Nxf2+ 
{[%clk 1:20:14]} 24. Kg1 {[%clk 0:32:25]} Ne4+ {[%clk 1:20:31]} 25. Kf1 
{[%clk 0:32:21]} Rxe7 {[%clk 1:20:27]} 26. Rbe1 {[%clk 0:31:28]} Rae8 
{[%clk 1:20:32]} 27. Bc2 {[%clk 0:31:19]} Nd2+ {[%clk 1:20:37]} 0-1

[Event "21th IPCA World Individual Chp."]
[Site "followchess.com"]
[Date "2022.05.16"]
[Round "9"]
[White "Zilberman, Yaacov"]
[Black "Campos, Eugenio"]
[Result "1-0"]
[WhiteElo "2315"]
[BlackElo "2247"]
[ECO "A75"]
[WhiteFed "ISR"]
[BlackFed "ANG"]
[FCGameId "370280516"]
[WhiteFideId "2801612"]
[BlackFideId "10100156"]
[TimeControl "5400+30"]

1. d4 {[%clk 1:30:53]} Nf6 {[%clk 1:30:52]} 2. c4 {[%clk 1:31:14]} c5 
{[%clk 1:31:15]} 3. d5 {[%clk 1:31:36]} e6 {[%clk 1:31:39]} 4. Nc3 
{[%clk 1:31:54]} exd5 {[%clk 1:32:02]} 5. cxd5 {[%clk 1:32:18]} d6 
{[%clk 1:32:26]} 6. Nf3 {[%clk 1:32:16]} g6 {[%clk 1:32:46]} 7. e4 
{[%clk 1:32:32]} a6 {[%clk 1:33:04]} 8. a4 {[%clk 1:28:33]} Bg7 {[%clk 1:33:24]} 
9. Be2 {[%clk 1:28:06]} O-O {[%clk 1:33:44]} 10. O-O {[%clk 1:28:21]} Bg4 
{[%clk 1:33:35]} 11. Bg5 {[%clk 1:27:13]} Nbd7 {[%clk 1:33:29]} 12. Nd2 
{[%clk 1:24:40]} Bxe2 {[%clk 1:33:24]} 13. Qxe2 {[%clk 1:25:02]} Re8 
{[%clk 1:33:37]} 14. a5 {[%clk 1:22:43]} Qc7 {[%clk 1:30:52]} 15. Rfe1 
{[%clk 1:17:48]} h6 {[%clk 1:27:48]} 16. Be3 {[%clk 1:11:21]} Ne5 
{[%clk 1:27:14]} 17. h3 {[%clk 1:10:52]} b5 {[%clk 1:22:24]} 18. axb6 
{[%clk 1:10:50]} Qxb6 {[%clk 1:22:49]} 19. f4 {[%clk 1:09:53]} Ned7 
{[%clk 1:23:04]} 20. Nc4 {[%clk 1:09:56]} Qc7 {[%clk 1:23:23]} 21. Qd3 
{[%clk 1:05:24]} Reb8 {[%clk 1:15:42]} 22. e5 {[%clk 0:57:42]} Ne8 
{[%clk 1:13:37]} 23. e6 {[%clk 0:57:20]} Nb6 {[%clk 1:13:40]} 24. Na5 
{[%clk 0:55:40]} c4 {[%clk 1:12:43]} 25. Qd2 {[%clk 0:54:44]} Bxc3 
{[%clk 1:04:48]} 26. bxc3 {[%clk 0:54:55]} Nf6 {[%clk 1:05:15]} 27. Nc6 
{[%clk 0:52:10]} Re8 {[%clk 1:04:52]} 28. exf7+ {[%clk 0:48:02]} Kxf7 
{[%clk 1:05:03]} 29. Bxb6 {[%clk 0:46:46]} Qxb6+ {[%clk 1:05:18]} 30. Kh2 
{[%clk 0:46:57]} Qb5 {[%clk 1:03:20]} 31. Ra5 {[%clk 0:45:48]} Qb6 
{[%clk 1:01:05]} 32. Raa1 {[%clk 0:41:34]} Qb5 {[%clk 0:59:33]} 33. Re6 
{[%clk 0:41:33]} Qc5 {[%clk 0:47:19]} 34. Ra5 {[%clk 0:40:28]} Qb6 
{[%clk 0:31:54]} 35. Rxd6 {[%clk 0:39:00]} Qe3 {[%clk 0:32:09]} 36. Qxe3 
{[%clk 0:38:03]} Rxe3 {[%clk 0:31:28]} 37. Ne5+ {[%clk 0:38:16]} 1-0

[Event "21th IPCA World Individual Chp."]
[Site "followchess.com"]
[Date "2022.05.16"]
[Round "9"]
[White "Gurbanov, Andrei"]
[Black "Lipilin, Ilia"]
[Result "1-0"]
[WhiteElo "2302"]
[BlackElo "2198"]
[ECO "A80"]
[WhiteFed "ISR"]
[BlackFed "FID"]
[FCGameId "-323426912"]
[WhiteFideId "13503391"]
[BlackFideId "54113245"]
[TimeControl "5400+30"]

1. d4 {[%clk 1:29:54]} f5 {[%clk 1:30:51]} 2. Bg5 {[%clk 1:29:23]} h6 
{[%clk 1:31:10]} 3. Bh4 {[%clk 1:28:38]} g5 {[%clk 1:31:29]} 4. Bg3 
{[%clk 1:26:34]} Bg7 {[%clk 1:31:47]} 5. e3 {[%clk 1:25:37]} c5 {[%clk 1:31:49]} 
6. c3 {[%clk 1:25:37]} Qb6 {[%clk 1:32:10]} 7. Na3 {[%clk 1:23:38]} d5 
{[%clk 1:20:27]} 8. Nb5 {[%clk 1:19:02]} Na6 {[%clk 1:16:08]} 9. dxc5 
{[%clk 1:14:40]} Qxc5 {[%clk 1:16:13]} 10. Qh5+ {[%clk 1:15:04]} Kf8 
{[%clk 1:16:24]} 11. Nf3 {[%clk 1:11:22]} Nf6 {[%clk 0:58:22]} 12. Qg6 
{[%clk 1:08:23]} Bd7 {[%clk 0:58:18]} 13. Nbd4 {[%clk 1:08:03]} Qb6 
{[%clk 0:51:35]} 14. Bxa6 {[%clk 1:05:00]} e6 {[%clk 0:37:31]} 15. Bd3 
{[%clk 1:01:58]} f4 {[%clk 0:35:59]} 16. Bb5 {[%clk 0:45:18]} Bxb5 
{[%clk 0:26:49]} 17. Nxb5 {[%clk 0:45:41]} fxg3 {[%clk 0:24:35]} 18. Ne5 
{[%clk 0:44:24]} gxf2+ {[%clk 0:23:40]} 19. Kd1 {[%clk 0:44:39]} Kg8 
{[%clk 0:23:51]} 20. Nd4 {[%clk 0:38:17]} Rf8 {[%clk 0:22:58]} 21. Rf1 
{[%clk 0:37:16]} Qxb2 {[%clk 0:12:33]} 22. Rb1 {[%clk 0:37:35]} Qxa2 
{[%clk 0:12:52]} 23. Rxb7 {[%clk 0:26:02]} Qa1+ {[%clk 0:11:55]} 24. Kc2 
{[%clk 0:25:34]} Qa2+ {[%clk 0:12:08]} 25. Rb2 {[%clk 0:21:01]} Qa4+ 
{[%clk 0:12:21]} 26. Kb1 {[%clk 0:21:22]} Qe8 {[%clk 0:11:32]} 27. Rfxf2 
{[%clk 0:19:03]} Ne4 {[%clk 0:05:42]} 28. Rxf8+ {[%clk 0:17:09]} Qxf8 
{[%clk 0:05:57]} 29. Qxe6+ {[%clk 0:17:32]} Kh7 {[%clk 0:06:17]} 30. Qg6+ 
{[%clk 0:17:43]} Kg8 {[%clk 0:06:45]} 31. Nf5 {[%clk 0:17:27]} Nd2+ 
{[%clk 0:01:37]} 32. Kc2 {[%clk 0:17:38]} Nc4 {[%clk 0:01:24]} 33. Ne7+ 
{[%clk 0:17:53]} Qxe7 {[%clk 0:01:41]} 34. Rb8+ {[%clk 0:18:21]} 1-0

[Event "21th IPCA World Individual Chp."]
[Site "followchess.com"]
[Date "2022.05.16"]
[Round "9"]
[White "Aleksandrova, Aleksandra"]
[Black "Yarmonov, Igor"]
[Result "0-1"]
[WhiteElo "1687"]
[BlackElo "2394"]
[ECO "D00"]
[WhiteFed "ISR"]
[BlackFed "UKR"]
[FCGameId "1961945735"]
[WhiteFideId "4144198"]
[BlackFideId "14114496"]
[TimeControl "5400+30"]

1. d4 {[%clk 1:30:55]} d5 {[%clk 1:30:33]} 2. e3 {[%clk 1:31:16]} Nf6 
{[%clk 1:30:23]} 3. Bd3 {[%clk 1:31:31]} e6 {[%clk 1:28:56]} 4. Nd2 
{[%clk 1:31:51]} b6 {[%clk 1:28:47]} 5. f4 {[%clk 1:31:50]} Ba6 {[%clk 1:28:59]} 
6. g4 {[%clk 1:28:56]} Bxd3 {[%clk 1:28:52]} 7. cxd3 {[%clk 1:29:25]} c5 
{[%clk 1:28:37]} 8. g5 {[%clk 1:29:35]} Nfd7 {[%clk 1:29:00]} 9. dxc5 
{[%clk 1:25:13]} Bxc5 {[%clk 1:29:21]} 10. d4 {[%clk 1:25:24]} Bd6 
{[%clk 1:29:28]} 11. Qf3 {[%clk 1:25:25]} Nc6 {[%clk 1:29:34]} 12. a3 
{[%clk 1:25:16]} Rc8 {[%clk 1:27:34]} 13. b4 {[%clk 1:24:19]} Nf8 
{[%clk 1:27:17]} 14. h4 {[%clk 1:22:56]} h6 {[%clk 1:27:19]} 15. Ne2 
{[%clk 1:17:53]} hxg5 {[%clk 1:24:44]} 16. hxg5 {[%clk 1:14:25]} Rxh1+ 
{[%clk 1:24:42]} 17. Qxh1 {[%clk 1:14:54]} Ne7 {[%clk 1:24:31]} 18. Nf3 
{[%clk 1:13:00]} Qd7 {[%clk 1:22:19]} 19. Bd2 {[%clk 1:09:48]} Qb5 
{[%clk 1:15:02]} 20. Kf2 {[%clk 1:08:19]} Nf5 {[%clk 1:11:53]} 21. a4 
{[%clk 0:56:47]} Qd3 {[%clk 1:08:10]} 22. Rc1 {[%clk 0:53:12]} Rc4 
{[%clk 1:04:08]} 23. Rxc4 {[%clk 0:49:59]} Qxc4 {[%clk 1:04:30]} 24. Qb1 
{[%clk 0:48:25]} Ne7 {[%clk 0:57:54]} 25. Bc3 {[%clk 0:47:06]} f6 
{[%clk 0:55:51]} 26. gxf6 {[%clk 0:42:53]} gxf6 {[%clk 0:56:17]} 27. Nd2 
{[%clk 0:43:15]} Qc8 {[%clk 0:55:28]} 28. b5 {[%clk 0:40:16]} Nfg6 
{[%clk 0:53:57]} 29. Bb4 {[%clk 0:34:48]} Bxb4 {[%clk 0:51:51]} 30. Qxb4 
{[%clk 0:35:16]} Qc2 {[%clk 0:46:59]} 31. a5 {[%clk 0:28:29]} bxa5 
{[%clk 0:39:35]} 32. Qxa5 {[%clk 0:28:57]} Nh4 {[%clk 0:39:23]} 33. Qc3 
{[%clk 0:26:38]} Qd1 {[%clk 0:30:33]} 34. Qc1 {[%clk 0:25:31]} Qxc1 
{[%clk 0:27:30]} 35. Nxc1 {[%clk 0:26:00]} Kd7 {[%clk 0:24:44]} 36. Nd3 
{[%clk 0:19:16]} Kc7 {[%clk 0:22:42]} 37. Nb1 {[%clk 0:19:08]} Kb6 
{[%clk 0:22:48]} 38. Nc3 {[%clk 0:19:38]} Nhf5 {[%clk 0:20:39]} 39. Nc5 
{[%clk 0:19:34]} Ka5 {[%clk 0:20:03]} 40. Na6 {[%clk 0:06:48]} Nd6 
{[%clk 0:19:18]} 41. Ke2 {[%clk 0:05:07]} Nxb5 {[%clk 0:18:14]} 42. Nxb5 
{[%clk 0:05:26]} Kxb5 {[%clk 0:18:39]} 43. Nc7+ {[%clk 0:05:50]} Kc4 
{[%clk 0:18:32]} 44. Nxe6 {[%clk 0:05:47]} a5 {[%clk 0:18:45]} 45. Nc5 
{[%clk 0:05:54]} Kc3 {[%clk 0:13:33]} 46. Na4+ {[%clk 0:03:14]} Kc2 
{[%clk 0:12:34]} 47. Kf3 {[%clk 0:02:58]} f5 {[%clk 0:12:53]} 48. Ke2 
{[%clk 0:01:41]} Nc8 {[%clk 0:11:37]} 49. Nc5 {[%clk 0:00:44]} Nb6 
{[%clk 0:11:22]} 0-1

[Event "21th IPCA World Individual Chp."]
[Site "followchess.com"]
[Date "2022.05.16"]
[Round "9"]
[White "Babanov, Aleksandr"]
[Black "Valenta, Vit Vaclav"]
[Result "0-1"]
[WhiteElo "1929"]
[BlackElo "2014"]
[ECO "A38"]
[WhiteFed "FID"]
[BlackFed "CZE"]
[FCGameId "-1887779230"]
[WhiteFideId "24117412"]
[BlackFideId "307440"]
[TimeControl "5400+30"]

1. Nf3 {[%clk 1:30:51]} Nf6 {[%clk 1:30:18]} 2. g3 {[%clk 1:30:57]} c5 
{[%clk 1:30:34]} 3. Bg2 {[%clk 1:31:18]} Nc6 {[%clk 1:30:52]} 4. c4 
{[%clk 1:28:25]} g6 {[%clk 1:31:12]} 5. Nc3 {[%clk 1:28:42]} Bg7 
{[%clk 1:31:34]} 6. O-O {[%clk 1:28:11]} O-O {[%clk 1:31:55]} 7. e3 
{[%clk 1:27:15]} d5 {[%clk 1:23:41]} 8. cxd5 {[%clk 1:24:04]} Nxd5 
{[%clk 1:24:08]} 9. d4 {[%clk 1:14:25]} Nxc3 {[%clk 1:04:20]} 10. bxc3 
{[%clk 1:11:47]} Qa5 {[%clk 1:02:46]} 11. Qb3 {[%clk 1:01:40]} Qc7 
{[%clk 0:55:38]} 12. Ba3 {[%clk 0:57:58]} Be6 {[%clk 0:43:23]} 13. Qb5 
{[%clk 0:51:13]} cxd4 {[%clk 0:41:14]} 14. cxd4 {[%clk 0:49:33]} a6 
{[%clk 0:36:47]} 15. Qe2 {[%clk 0:46:49]} Qa5 {[%clk 0:31:07]} 16. Qb2 
{[%clk 0:40:19]} Bd5 {[%clk 0:27:27]} 17. Bc5 {[%clk 0:30:25]} Qxc5 
{[%clk 0:26:50]} 18. Rfc1 {[%clk 0:18:50]} Qd6 {[%clk 0:20:28]} 19. Qe2 
{[%clk 0:16:55]} Be4 {[%clk 0:19:14]} 20. a4 {[%clk 0:16:31]} Rac8 
{[%clk 0:18:47]} 21. Nd2 {[%clk 0:15:17]} Bxg2 {[%clk 0:18:14]} 22. Kxg2 
{[%clk 0:15:45]} Nb4 {[%clk 0:17:23]} 23. Ne4 {[%clk 0:14:22]} Qd5 
{[%clk 0:16:30]} 24. f3 {[%clk 0:14:44]} a5 {[%clk 0:15:32]} 25. Nc3 
{[%clk 0:14:04]} Qc4 {[%clk 0:15:27]} 26. Qd2 {[%clk 0:10:35]} Qd3 
{[%clk 0:15:03]} 27. Ne4 {[%clk 0:09:33]} Qxd2+ {[%clk 0:14:34]} 28. Nxd2 
{[%clk 0:09:56]} Nc2 {[%clk 0:14:41]} 29. Rab1 {[%clk 0:09:18]} Nxe3+ 
{[%clk 0:14:22]} 30. Kf2 {[%clk 0:09:39]} Bxd4 {[%clk 0:13:26]} 31. Nb3 
{[%clk 0:09:24]} Bb6 {[%clk 0:12:35]} 32. Ke2 {[%clk 0:08:13]} Nd5 
{[%clk 0:12:07]} 33. Nd2 {[%clk 0:06:38]} Rxc1 {[%clk 0:11:51]} 34. Rxc1 
{[%clk 0:06:53]} Be3 {[%clk 0:12:10]} 35. Rc2 {[%clk 0:05:50]} Bxd2 
{[%clk 0:12:28]} 36. Rc5 {[%clk 0:04:45]} e6 {[%clk 0:12:37]} 37. Kxd2 
{[%clk 0:05:05]} b6 {[%clk 0:13:00]} 38. Rc6 {[%clk 0:05:03]} Rd8 
{[%clk 0:13:22]} 39. Ke2 {[%clk 0:05:19]} Rd7 {[%clk 0:13:37]} 40. h4 
{[%clk 0:05:08]} Rc7 {[%clk 0:13:59]} 41. Rd6 {[%clk 0:05:27]} Rc4 
{[%clk 0:14:11]} 42. f4 {[%clk 0:03:28]} Rxa4 {[%clk 0:11:41]} 43. Kf3 
{[%clk 0:03:36]} Kg7 {[%clk 0:11:59]} 44. Kg4 {[%clk 0:03:39]} Ra3 
{[%clk 0:12:11]} 45. h5 {[%clk 0:02:46]} Ne3+ {[%clk 0:10:37]} 46. Kh3 
{[%clk 0:02:08]} Nf5 {[%clk 0:10:50]} 47. Rxb6 {[%clk 0:01:39]} Rxg3+ 
{[%clk 0:11:10]} 48. Kh2 {[%clk 0:01:56]} a4 {[%clk 0:11:18]} 49. hxg6 
{[%clk 0:01:58]} hxg6 {[%clk 0:11:40]} 50. Ra6 {[%clk 0:02:16]} a3 
{[%clk 0:12:00]} 51. Ra5 {[%clk 0:02:38]} Rb3 {[%clk 0:12:18]} 52. Ra7 
{[%clk 0:02:28]} Nd4 {[%clk 0:11:58]} 53. Ra4 {[%clk 0:02:36]} Rb2+ 
{[%clk 0:12:10]} 54. Kg3 {[%clk 0:02:39]} a2 {[%clk 0:12:26]} 55. f5 
{[%clk 0:01:50]} Nc2 {[%clk 0:11:52]} 0-1

[Event "21th IPCA World Individual Chp."]
[Site "followchess.com"]
[Date "2022.05.16"]
[Round "9"]
[White "Alperovich, Asher"]
[Black "Srimskov, Elishar"]
[Result "0-1"]
[WhiteElo "1865"]
[BlackElo "1992"]
[ECO "A66"]
[WhiteFed "ISR"]
[BlackFed "ISR"]
[FCGameId "185179945"]
[WhiteFideId "2803275"]
[BlackFideId "2807254"]
[TimeControl "5400+30"]

1. d4 {[%clk 1:30:57]} Nf6 {[%clk 1:30:36]} 2. c4 {[%clk 1:31:22]} e6 
{[%clk 1:30:25]} 3. Nc3 {[%clk 1:31:09]} c5 {[%clk 1:30:07]} 4. d5 
{[%clk 1:31:00]} exd5 {[%clk 1:29:38]} 5. cxd5 {[%clk 1:31:28]} d6 
{[%clk 1:29:45]} 6. e4 {[%clk 1:28:30]} g6 {[%clk 1:29:28]} 7. f4 
{[%clk 1:28:40]} Qe7 {[%clk 1:25:52]} 8. Nf3 {[%clk 1:26:11]} Bg7 
{[%clk 1:21:44]} 9. Bb5+ Bd7 {[%clk 1:19:52]} 10. e5 {[%clk 1:15:10]} O-O 
{[%clk 1:18:33]} 11. O-O {[%clk 1:11:16]} Ne8 {[%clk 1:17:46]} 12. Bc4 
{[%clk 1:00:55]} Bg4 {[%clk 1:11:11]} 13. Re1 {[%clk 0:48:00]} Bxf3 
{[%clk 1:06:57]} 14. Qxf3 {[%clk 0:47:49]} dxe5 {[%clk 1:07:07]} 15. fxe5 
{[%clk 0:46:00]} Bxe5 {[%clk 1:02:12]} 16. Bf4 {[%clk 0:44:46]} Bd4+ 
{[%clk 1:00:05]} 17. Kh1 {[%clk 0:44:35]} Qd8 {[%clk 0:57:05]} 18. Nb5 
{[%clk 0:41:53]} Bg7 {[%clk 0:52:24]} 19. Qg3 {[%clk 0:36:36]} Nd7 
{[%clk 0:51:31]} 20. d6 {[%clk 0:31:36]} Nef6 {[%clk 0:48:44]} 21. Be2 
{[%clk 0:27:40]} Ne4 {[%clk 0:42:14]} 22. Qe3 {[%clk 0:27:08]} Nef6 
{[%clk 0:39:44]} 23. Bf3 {[%clk 0:25:31]} a6 {[%clk 0:39:06]} 24. Nc7 
{[%clk 0:22:53]} Rb8 {[%clk 0:39:19]} 25. Rad1 {[%clk 0:22:46]} Qc8 
{[%clk 0:37:32]} 26. Qa3 {[%clk 0:19:24]} Rd8 {[%clk 0:34:14]} 27. h3 
{[%clk 0:18:41]} Bf8 {[%clk 0:32:03]} 28. Re7 {[%clk 0:15:02]} b5 
{[%clk 0:26:43]} 29. Qe3 {[%clk 0:09:33]} Nb6 {[%clk 0:20:34]} 30. Qxc5 
{[%clk 0:03:14]} Bxe7 {[%clk 0:20:27]} 31. dxe7 {[%clk 0:03:36]} Rxd1+ 
{[%clk 0:20:45]} 32. Bxd1 {[%clk 0:04:02]} Nbd7 {[%clk 0:16:53]} 33. Qd4 
{[%clk 0:02:07]} Rb7 {[%clk 0:15:54]} 34. Qd6 {[%clk 0:01:12]} Rb6 
{[%clk 0:14:55]} 35. Qd4 {[%clk 0:00:49]} Rc6 {[%clk 0:14:44]} 36. Bg4 
{[%clk 0:00:47]} Rxc7 {[%clk 0:13:35]} 37. Bxc7 {[%clk 0:00:54]} Qxc7 
{[%clk 0:12:51]} 38. Qxd7 {[%clk 0:00:39]} Nxd7 {[%clk 0:12:44]} 39. e8=Q+ 
{[%clk 0:00:45]} Nf8 {[%clk 0:13:07]} 40. Qc8 {[%clk 0:00:40]} Qxc8 
{[%clk 0:13:13]} 41. Bxc8 {[%clk 0:01:09]} a5 {[%clk 0:13:31]} 42. a3 
{[%clk 0:01:05]} b4 {[%clk 0:13:39]} 43. Kg1 {[%clk 0:01:23]} bxa3 
{[%clk 0:13:34]} 44. bxa3 {[%clk 0:01:45]} Ne6 {[%clk 0:13:49]} 45. Kf2 
{[%clk 0:01:40]} Kf8 {[%clk 0:14:13]} 46. Ke3 {[%clk 0:01:55]} Ke7 
{[%clk 0:14:40]} 47. Kd3 {[%clk 0:01:27]} Kd6 {[%clk 0:14:14]} 48. Kc4 
{[%clk 0:01:26]} Kc6 {[%clk 0:13:24]} 49. g3 {[%clk 0:01:12]} h5 
{[%clk 0:13:13]} 50. h4 {[%clk 0:01:06]} Ng7 {[%clk 0:09:50]} 51. Bh3 
{[%clk 0:00:39]} f6 {[%clk 0:08:56]} 52. g4 {[%clk 0:00:43]} hxg4 
{[%clk 0:09:04]} 53. Bxg4 {[%clk 0:01:12]} Kb6 {[%clk 0:05:22]} 54. Kd5 
{[%clk 0:00:45]} Kb5 {[%clk 0:05:47]} 55. Bd7+ {[%clk 0:00:51]} Kb6 
{[%clk 0:06:03]} 56. Kd6 {[%clk 0:00:40]} g5 {[%clk 0:05:59]} 57. hxg5 
{[%clk 0:00:40]} fxg5 {[%clk 0:06:27]} 58. Ke5 {[%clk 0:01:04]} Nh5 
{[%clk 0:06:24]} 59. Kf5 {[%clk 0:00:57]} g4 {[%clk 0:06:52]} 60. Bc8 
{[%clk 0:00:32]} g3 0-1

[Event "21th IPCA World Individual Chp."]
[Site "followchess.com"]
[Date "2022.05.16"]
[Round "9"]
[White "Pilimon, Zbigniew"]
[Black "Shchukina, Ekaterina"]
[Result "1-0"]
[WhiteElo "1620"]
[BlackElo "1496"]
[ECO "A57"]
[WhiteFed "POL"]
[BlackFed "FID"]
[FCGameId "-1418995897"]
[WhiteFideId "1110489"]
[BlackFideId "34103055"]
[TimeControl "5400+30"]

1. d4 {[%clk 1:30:54]} Nf6 {[%clk 1:30:52]} 2. c4 {[%clk 1:31:17]} c5 
{[%clk 1:31:14]} 3. d5 {[%clk 1:31:39]} b5 {[%clk 1:31:29]} 4. e3 
{[%clk 1:30:55]} b4 {[%clk 1:31:12]} 5. b3 {[%clk 1:30:59]} g6 {[%clk 1:27:34]} 
6. Bb2 {[%clk 1:31:13]} Bg7 {[%clk 1:27:59]} 7. Bd3 {[%clk 1:31:21]} O-O 
{[%clk 1:27:49]} 8. Nf3 {[%clk 1:31:18]} d6 {[%clk 1:27:43]} 9. O-O 
{[%clk 1:31:28]} Nbd7 {[%clk 1:25:22]} 10. Nbd2 {[%clk 1:30:59]} Ng4 
{[%clk 1:21:23]} 11. Bxg7 Kxg7 {[%clk 1:21:47]} 12. e4 {[%clk 1:27:24]} Nge5 
{[%clk 1:21:49]} 13. Bc2 {[%clk 1:27:44]} Nxf3+ 14. Nxf3 {[%clk 1:27:52]} f6 15. 
Re1 {[%clk 1:26:20]} Nb6 {[%clk 1:15:26]} 16. Nd2 {[%clk 1:23:42]} a5 
{[%clk 1:15:09]} 17. f4 {[%clk 1:23:49]} Qc7 {[%clk 1:14:51]} 18. h3 
{[%clk 1:22:46]} Bd7 {[%clk 1:15:06]} 19. Nf3 {[%clk 1:23:03]} a4 
{[%clk 1:10:00]} 20. Qd2 {[%clk 1:22:07]} Ra7 {[%clk 1:03:45]} 21. e5 
{[%clk 1:17:16]} Rfa8 {[%clk 1:02:47]} 22. exf6+ {[%clk 1:17:04]} exf6 
{[%clk 1:03:06]} 23. Re7+ {[%clk 1:17:09]} Kg8 {[%clk 1:03:20]} 24. f5 
{[%clk 1:16:09]} Qd8 {[%clk 1:02:53]} 25. Rae1 {[%clk 1:14:48]} Nc8 
{[%clk 1:00:52]} 26. R7e2 {[%clk 1:13:20]} axb3 {[%clk 0:51:50]} 27. axb3 
{[%clk 1:12:07]} g5 {[%clk 0:46:37]} 28. Bb1 {[%clk 0:44:12]} Kg7 
{[%clk 0:38:40]} 29. Qb2 {[%clk 0:33:02]} Kf7 {[%clk 0:37:58]} 30. Re3 
{[%clk 0:32:38]} Qa5 {[%clk 0:35:55]} 31. Qf2 {[%clk 0:32:31]} h6 
{[%clk 0:23:37]} 32. Nd2 {[%clk 0:32:19]} Qa1 {[%clk 0:19:48]} 33. Qe2 
{[%clk 0:32:24]} Qb2 {[%clk 0:16:35]} 34. Qh5+ {[%clk 0:31:38]} Kg7 
{[%clk 0:16:16]} 35. Re7+ {[%clk 0:31:15]} Nxe7 {[%clk 0:16:33]} 36. Rxe7+ 
{[%clk 0:31:25]} Kh8 {[%clk 0:14:46]} 37. Qxh6+ {[%clk 0:31:39]} Kg8 
{[%clk 0:15:06]} 38. Qg7# 1-0